bitfinex/quotes_ETHUSD_20250920
["timestamp","ask_amount","ask_price","bid_price","bid_amount"]
[1758375747899,15.35285557,4475.8,4475.7,0.001]
[1758375748194,11.65585557,4475.8,4475.7,0.001]
[1758375748361,15.35285557,4475.8,4475.7,0.001]
[1758375749162,11.65585557,4475.8,4475.7,0.001]
[1758375749362,15.35285557,4475.8,4475.7,0.001]
[1758375749564,15.35285557,4475.8,4475.7,0.2486]
[1758375750698,15.35285557,4475.8,4475.7,0.001]
[1758375754292,15.35285557,4475.8,4475.7,0.2486]
[1758375755432,15.35285557,4475.8,4475.7,0.001]
[1758375757811,15.35287341,4475.8,4475.7,0.001]
[1758375761234,15.35290245,4475.8,4475.7,0.001]
[1758375765235,15.35290517,4475.8,4475.7,0.001]
[1758375770066,15.14314832,4475.8,4475.7,0.001]
[1758375770292,15.35290351,4475.8,4475.7,0.001]
[1758375780187,5.66142991,4475.8,4475.7,0.001]
[1758375780484,5.66142991,4475.8,4475.7,0.2281]
[1758375781260,2.66142991,4475.8,4475.7,0.2281]
[1758375781667,5.45167472,4475.8,4475.7,0.2281]
[1758375782657,5.66122828,4475.8,4475.7,0.2281]
[1758375784091,5.45167472,4475.8,4475.7,0.2281]
[1758375784661,5.66114245,4475.8,4475.7,0.2281]
[1758375786666,2.45167472,4475.8,4475.7,0.2281]
[1758375792310,0.21743727,4475.8,4475.7,0.2281]
[1758375792477,0.09158316,4475.8,4475.7,0.2281]
[1758375798630,2.32582061,4475.8,4475.7,0.2281]
[1758375799139,0.09158316,4475.8,4475.7,0.2281]
[1758375813342,0.21707941,4475.8,4475.7,0.2281]
[1758375813560,0.09158316,4475.8,4475.7,0.2281]
[1758375813772,0.21707941,4475.8,4475.7,0.2281]
[1758375813971,0.09158316,4475.8,4475.7,0.2281]
[1758375814172,0.21707941,4475.8,4475.7,3.9251]
[1758375814336,0.09158316,4475.8,4475.7,3.9251]
[1758375814680,0.21707941,4475.8,4475.7,3.9251]
[1758375814853,0.09158316,4475.8,4475.7,4.51101]
[1758375815052,0.21707941,4475.8,4475.7,4.51101]
[1758375815610,0.21732,4475.8,4475.7,4.51101]
[1758375823544,0.21739171,4475.8,4475.7,3.9251]
[1758375831049,0.21739171,4475.8,4475.7,3.698]
[1758375832887,0.21739332,4475.8,4475.7,3.698]
[1758375835360,0.21739332,4475.8,4475.7,3.9436]
[1758375845468,0.21739332,4475.8,4475.7,3.698]
[1758375847173,0.21739332,4475.8,4475.7,3.9251]
[1758375847485,0.21739332,4475.8,4475.7,3.698]
[1758375848572,0.21739332,4475.8,4475.7,0.001]
[1758375848777,0.46359332,4475.8,4475.7,3.697]
[1758375850411,0.21739332,4475.8,4475.7,3.697]
[1758375851210,0.21739332,4475.8,4475.7,3.9241]
[1758375855695,0.21739332,4475.8,4475.7,3.9362]
[1758375860963,0.12781016,4475.8,4475.7,3.95854287]
[1758375866245,0.12778594,4475.8,4475.7,3.95854287]
[1758375866883,0.12778594,4475.8,4475.7,4.75054287]
[1758375867067,0.002,4475.8,4475.7,5.39665429]
[1758375867564,0.12778594,4475.8,4475.7,5.39665429]
[1758375867750,0.002,4475.8,4475.7,5.39665429]
[1758375868284,0.12778594,4475.8,4475.7,5.39665429]
[1758375868451,0.002,4475.8,4475.7,5.39665429]
[1758375868863,0.12778594,4475.8,4475.7,5.39665429]
[1758375869066,0.002,4475.8,4475.7,5.39665429]
[1758375869462,0.12778594,4475.8,4475.7,5.39665429]
[1758375869664,0.002,4475.8,4475.7,5.39665429]
[1758375870163,0.12778594,4475.8,4475.7,5.39665429]
[1758375870484,0.002,4475.8,4475.7,5.39665429]
[1758375870885,0.12778594,4475.8,4475.7,5.39665429]
[1758375871183,0.002,4475.8,4475.7,5.39665429]
[1758375871687,0.12778594,4475.8,4475.7,5.39665429]
[1758375871850,0.002,4475.8,4475.7,5.39665429]
[1758375872254,0.12778594,4475.8,4475.7,5.39665429]
[1758375872454,0.002,4475.8,4475.7,5.39665429]
[1758375872860,0.12778594,4475.8,4475.7,5.39665429]
[1758375873060,0.002,4475.8,4475.7,5.39665429]
[1758375873579,0.12778594,4475.8,4475.7,5.39665429]
[1758375873778,0.002,4475.8,4475.7,5.39665429]
[1758375874284,0.1277563,4475.8,4475.7,5.39665429]
[1758375874492,0.002,4475.8,4475.7,5.39665429]
[1758375874876,0.1277563,4475.8,4475.7,5.39665429]
[1758375875079,0.002,4475.8,4475.7,5.39665429]
[1758375875593,0.1277563,4475.8,4475.7,5.39665429]
[1758375875797,0.002,4475.8,4475.7,5.39665429]
[1758375876177,0.1277563,4475.8,4475.7,5.39665429]
[1758375876381,0.002,4475.8,4475.7,5.39665429]
[1758375876759,0.1277563,4475.8,4475.7,4.7282]
[1758375876959,0.002,4475.8,4475.7,4.7282]
[1758375877487,0.1277563,4475.8,4475.7,6.96248737]
[1758375877658,0.002,4475.8,4475.7,4.7282]
[1758375877858,0.67361949,4475.8,4475.7,4.7282]
[1758375878156,0.79937545,4475.8,4475.7,4.7282]
[1758375881089,0.002,4475.8,4475.7,7.85214005]
[1758375881490,0.002,4475.8,4475.7,5.61785268]
[1758375882283,0.002,4475.8,4475.7,7.85214005]
[1758375883804,0.002,4475.8,4475.7,5.61785268]
[1758375884774,0.002,4475.8,4475.7,7.85214005]
[1758375885714,0.002,4475.8,4475.7,5.61785268]
[1758375886033,0.002,4475.8,4475.7,7.85214005]
[1758375888710,0.002,4475.8,4475.7,5.61785268]
[1758375891630,0.002,4475.8,4475.7,5.37865268]
[1758375892130,0.2363,4475.8,4475.7,5.37865268]
[1758375893323,0.2363,4475.8,4475.7,4.489]
[1758375896823,0.002,4475.8,4475.7,4.489]
[1758375898645,0.002,4475.8,4475.7,6.72328737]
[1758375904044,0.002,4475.8,4475.7,6.95118737]
[1758375905558,0.002,4475.8,4475.7,6.72328737]
[1758375906977,0.002,4475.8,4475.7,6.96068737]
[1758375907552,0.002,4475.8,4475.7,6.95968737]
[1758375907780,0.002,4475.8,4475.7,8.09528429]
[1758375913902,0.002,4475.8,4475.7,8.32318429]
[1758375914490,0.002,4475.8,4475.7,4.62818429]
[1758375914693,0.002,4475.8,4475.7,8.32318429]
[1758375924552,0.002,4475.8,4475.7,8.09528429]
[1758375926085,0.002,4475.8,4475.7,7.85788429]
[1758375939857,0.002,4475.8,4475.7,4.488]
[1758375940045,0.002,4475.8,4475.7,3.696]
[1758375940046,0.2418,4475.8,4475.7,3.696]
[1758375940217,0.60940632,4475.8,4475.7,3.696]
[1758375940614,0.60940632,4475.8,4475.7,5.93028737]
[1758375942133,0.36960632,4475.8,4475.7,5.93028737]
[1758375947785,0.36960632,4475.8,4475.7,3.696]
[1758375948387,0.36960632,4475.8,4475.7,5.93028737]
[1758375950154,0.36960632,4475.8,4475.7,2.23528737]
[1758375950453,0.36960632,4475.8,4475.7,5.93028737]
[1758375955124,0.36960632,4475.8,4475.7,6.17278737]
[1758375959999,0.002,4475.8,4475.7,6.17278737]
[1758375963112,0.002,4475.8,4475.7,6.72228737]
[1758375963280,0.002,4475.8,4475.7,7.98320457]
[1758375967203,0.002,4475.8,4475.7,12.95818485]
[1758375967931,0.002,4475.8,4475.7,13.04771747]
[1758375979782,0.002,4475.8,4475.7,8.07273719]
[1758376008159,0.002,4475.8,4475.7,8.08613719]
[1758376012547,0.002,4475.8,4475.7,14.12413719]
[1758376022149,0.002,4475.8,4475.7,17.12413719]
[1758376022477,0.002,4475.8,4475.7,17.13283719]
[1758376034704,0.002,4475.8,4475.7,16.88393719]
[1758376041245,0.002,4475.8,4475.7,16.88293719]
[1758376041453,0.2309,4475.8,4475.7,16.88293719]
[1758376042637,0.002,4475.8,4475.7,16.88293719]
[1758376043228,0.2309,4475.8,4475.7,16.88293719]
[1758376044927,0.002,4475.8,4475.7,16.88293719]
[1758376046553,0.002,4475.8,4475.7,17.11753719]
[1758376047053,1e-08,4476.1,4476.0,3.02613762]
[1758376047248,1e-08,4476.1,4476.0,13.87400025]
[1758376047458,1e-08,4476.1,4476.0,13.85165888]
[1758376047762,1e-08,4476.1,4476.0,14.08055888]
[1758376051681,1e-08,4476.1,4476.0,14.31515888]
[1758376055265,1e-08,4476.1,4476.0,14.08055888]
[1758376055471,1e-08,4476.1,4476.0,17.31515888]
[1758376059374,1e-08,4476.6,4476.5,7.99882139]
[1758376059607,1e-08,4476.6,4476.5,17.64809908]
[1758376060283,1e-08,4476.6,4476.5,17.73760806]
[1758376062097,1e-08,4476.6,4476.5,23.77460806]
[1758376062303,1e-08,4476.6,4476.5,24.00920806]
[1758376066627,1e-08,4476.6,4476.5,23.77460806]
[1758376070000,1e-08,4476.6,4476.5,18.80167475]
[1758376070338,1e-08,4476.6,4476.5,23.77460806]
[1758376071804,1e-08,4476.6,4476.5,23.77560806]
[1758376081121,1e-08,4476.6,4476.5,18.80267475]
[1758376092274,0.002,4476.7,4476.6,6.02583818]
[1758376092485,0.002,4476.7,4476.6,8.22511462]
[1758376093051,0.002,4476.7,4476.6,8.31462041]
[1758376096982,0.1372,4476.7,4476.6,6.71883818]
[1758376097798,0.002,4476.7,4476.6,6.71883818]
[1758376099813,0.1372,4476.7,4476.6,6.71883818]
[1758376102102,0.002,4476.7,4476.6,6.71883818]
[1758376102276,0.1372,4476.7,4476.6,6.71883818]
[1758376104670,0.002,4476.7,4476.6,6.71883818]
[1758376104869,0.1372,4476.7,4476.6,6.71883818]
[1758376106812,0.002,4476.7,4476.6,6.71883818]
[1758376107014,0.1372,4476.7,4476.6,6.71883818]
[1758376107217,0.1372,4476.7,4476.6,6.71983818]
[1758376107422,0.1372,4476.7,4476.6,3.02583818]
[1758376107624,0.1372,4476.7,4476.6,6.72083818]
[1758376109193,0.1372,4476.7,4476.6,3.02683818]
[1758376109521,0.1372,4476.7,4476.6,6.72083818]
[1758376110536,0.002,4476.7,4476.6,6.72083818]
[1758376115402,0.1372,4476.7,4476.6,6.72083818]
[1758376115598,0.002,4476.7,4476.6,6.72083818]
[1758376117050,0.002,4476.7,4476.6,3.02683818]
[1758376117346,0.002,4476.7,4476.6,6.72083818]
[1758376124949,0.002,4476.7,4476.6,6.94743818]
[1758376130110,0.002,4476.7,4476.6,6.72083818]
[1758376146396,0.002,4476.7,4476.6,6.95143818]
[1758376161330,0.002,4476.7,4476.6,6.72083818]
[1758376162565,0.002,4476.7,4476.6,6.96233818]
[1758376167690,0.002,4476.7,4476.6,8.89433818]
[1758376173494,0.002,4476.7,4476.6,8.65283818]
[1758376182111,0.002,4476.7,4476.6,4.95883818]
[1758376182316,0.002,4476.7,4476.6,8.65283818]
[1758376184421,0.002,4476.7,4476.6,4.95883818]
[1758376184715,0.002,4476.7,4476.6,8.88873818]
[1758376184883,0.002,4476.7,4476.6,11.08801462]
[1758376185086,0.002,4476.7,4476.6,11.22921463]
[1758376187123,0.002,4476.7,4476.6,11.08801462]
[1758376191046,0.002,4476.7,4476.6,16.06005767]
[1758376191549,0.002,4476.7,4476.6,16.20125768]
[1758376194818,0.002,4476.7,4476.6,16.20725768]
[1758376209873,0.002,4476.7,4476.6,15.97135768]
[1758376210070,0.002,4476.7,4476.6,16.19915768]
[1758376213959,1e-08,4476.9,4476.8,2.23373838]
[1758376214158,1e-08,4476.9,4476.8,8.9453522]
[1758376214346,1e-08,4476.9,4476.8,9.16531482]
[1758376214550,0.08950358,4477.8,4476.9,0.792]
[1758376214751,1e-08,4477.5,4477.4,3.02543904]
[1758376214999,1e-08,4477.5,4477.4,11.69548209]
[1758376215162,1e-08,4477.5,4477.4,13.33068418]
[1758376215362,1e-08,4477.5,4477.4,13.42018776]
[1758376222514,1e-08,4477.5,4477.4,13.86267494]
[1758376226022,1e-08,4477.5,4477.4,8.89063189]
[1758376233998,1e-08,4477.5,4477.4,14.92663189]
[1758376238906,1e-08,4477.5,4477.4,16.85763189]
[1758376239934,1e-08,4477.5,4477.4,16.61533189]
[1758376240121,1e-08,4477.5,4477.4,15.13192622]
[1758376240122,0.13520001,4477.5,4477.4,15.13192622]
[1758376242240,1e-08,4477.5,4477.4,10.99243904]
[1758376242463,0.13520001,4477.5,4477.4,14.68943904]
[1758376251164,1e-08,4477.5,4477.4,14.68943904]
[1758376251728,0.13520001,4477.5,4477.4,14.68943904]
[1758376254270,1e-08,4477.5,4477.4,14.68943904]
[1758376267702,1e-08,4477.5,4477.4,8.65343904]
[1758376278438,1e-08,4477.5,4477.4,1.931]
[1758376278639,0.26086587,4477.5,4477.4,5.627]
[1758376278938,0.85755247,4477.5,4477.4,5.627]
[1758376279237,0.53126588,4477.5,4477.4,5.627]
[1758376279436,3.53126588,4477.5,4477.4,5.627]
[1758376279655,2.76465504,4477.5,4477.4,5.627]
[1758376280098,0.53126588,4477.5,4477.4,5.627]
[1758376281238,2.76465504,4477.5,4477.4,5.627]
[1758376281603,5.76465504,4477.5,4477.4,5.627]
[1758376287240,3.53126588,4477.5,4477.4,5.627]
[1758376287842,5.76465504,4477.5,4477.4,5.627]
[1758376288249,3.53126588,4477.5,4477.4,5.627]
[1758376288945,3.39606588,4477.5,4477.4,5.627]
[1758376290852,3.39415555,4477.5,4477.4,5.627]
[1758376294356,3.27040001,4477.5,4477.4,5.8756]
[1758376295513,3.27040001,4477.5,4477.4,5.627]
[1758376297056,3.27040001,4477.5,4477.4,1.931]
[1758376297374,3.27040001,4477.5,4477.4,5.628]
[1758376300576,10.61174257,4477.5,4477.4,5.628]
[1758376300775,10.47654257,4477.5,4477.4,5.628]
[1758376301543,10.47854257,4477.5,4477.4,5.628]
[1758376303077,10.60407216,4477.5,4477.4,5.628]
[1758376306877,10.60414405,4477.5,4477.4,5.628]
[1758376307276,10.81354027,4477.5,4477.4,5.628]
[1758376313800,10.81354027,4477.5,4477.4,1.931]
[1758376314103,10.81354027,4477.5,4477.4,5.627]
[1758376316360,10.81354027,4477.5,4477.4,5.854]
[1758376316561,10.81354027,4477.5,4477.4,5.627]
[1758376318600,10.81361488,4477.5,4477.4,5.627]
[1758376319066,10.81361488,4477.5,4477.4,1.931]
[1758376319267,10.81361488,4477.5,4477.4,5.854]
[1758376320765,10.81361255,4477.5,4477.4,5.854]
[1758376320965,10.81361255,4477.5,4477.4,5.627]
[1758376323602,10.81361255,4477.5,4477.4,5.8577]
[1758376324803,8.58022339,4477.5,4477.4,5.8577]
[1758376325303,8.58031387,4477.5,4477.4,5.8577]
[1758376325673,10.81370303,4477.5,4477.4,5.8577]
[1758376326306,10.81370303,4477.5,4477.4,5.627]
[1758376328169,10.81370303,4477.5,4477.4,5.8577]
[1758376329717,3.60756047,4477.5,4477.4,5.8577]
[1758376332312,5.84094963,4477.5,4477.4,5.627]
[1758376333313,5.84107157,4477.5,4477.4,5.627]
[1758376335021,5.84107157,4477.5,4477.4,3.696]
[1758376335914,3.60768241,4477.5,4477.4,3.696]
[1758376336117,3.60768241,4477.5,4477.4,3.9385]
[1758376336410,5.84107157,4477.5,4477.4,3.9385]
[1758376337026,3.60768241,4477.5,4477.4,3.9385]
[1758376337324,3.60768241,4477.5,4477.4,0.2425]
[1758376337626,5.84107157,4477.5,4477.4,3.9375]
[1758376339313,5.84107157,4477.5,4477.4,3.695]
[1758376340915,2.23343904,4477.4,4477.3,0.001]
[1758376341080,2.56872144,4477.4,4477.3,3.696]
[1758376344813,2.56872144,4477.4,4477.3,0.001]
[1758376345027,2.56872144,4477.4,4477.3,3.696]
[1758376347934,0.3352824,4477.4,4477.3,3.9385]
[1758376348349,2.56872144,4477.4,4477.3,3.696]
[1758376348929,0.3352824,4477.4,4477.3,3.696]
[1758376349798,2.56872144,4477.4,4477.3,3.696]
[1758376350034,0.3352824,4477.4,4477.3,3.696]
[1758376350538,2.56872144,4477.4,4477.3,3.696]
[1758376351742,2.56872144,4477.4,4477.3,3.9385]
[1758376352440,2.56872144,4477.4,4477.3,3.696]
[1758376354839,0.3352824,4477.4,4477.3,3.696]
[1758376355138,0.3352824,4477.4,4477.3,3.9385]
[1758376356505,3.3352824,4477.4,4477.3,3.9385]
[1758376356911,0.3352824,4477.4,4477.3,3.9385]
[1758376359139,0.3352824,4477.4,4477.3,3.696]
[1758376359311,0.3352824,4477.4,4477.3,0.001]
[1758376359511,0.3352824,4477.4,4477.3,3.696]
[1758376359711,0.3352824,4477.4,4477.3,3.9385]
[1758376363312,18.9420327,4477.4,4477.3,0.001]
[1758376363541,19.28992806,4477.4,4477.3,0.001]
[1758376364924,19.28979281,4477.4,4477.3,0.001]
[1758376368830,19.28931676,4477.4,4477.3,0.001]
[1758376369265,2.23363859,4477.0,4476.9,0.001]
[1758376369467,22.86349886,4477.0,4476.9,0.001]
[1758376369678,22.99869886,4477.0,4476.9,0.001]
[1758376370180,23.08825294,4477.0,4476.9,0.001]
[1758376381188,23.08745758,4477.0,4476.9,0.001]
[1758376381359,23.41186075,4477.0,4476.9,0.001]
[1758376381887,23.27666075,4477.0,4476.9,0.001]
[1758376382490,22.94907503,4477.0,4476.9,0.001]
[1758376382687,19.24307503,4477.0,4476.9,0.001]
[1758376382984,22.94807503,4477.0,4476.9,0.2349]
[1758376383188,22.94806644,4477.0,4476.9,0.001]
[1758376386798,23.08326644,4477.0,4476.9,0.001]
[1758376389397,22.94806644,4477.0,4476.9,0.001]
[1758376391171,19.24306644,4477.0,4476.9,0.001]
[1758376391370,22.94706644,4477.0,4476.9,0.2349]
[1758376391770,22.94706644,4477.0,4476.9,0.001]
[1758376394296,23.08226644,4477.0,4476.9,0.001]
[1758376397695,22.94706644,4477.0,4476.9,0.001]
[1758376399288,5.58158384,4476.9,4476.8,0.001]
[1758376399595,6.20680365,4476.9,4476.8,0.001]
[1758376403009,13.24680365,4476.9,4476.8,0.001]
[1758376407874,23.20079003,4476.9,4476.8,0.001]
[1758376411723,2.23378828,4476.7,4476.6,0.001]
[1758376412034,9.27165543,4476.7,4476.6,0.001]
[1758376412319,9.5960586,4476.7,4476.6,0.001]
[1758376412673,9.5960586,4476.7,4476.6,0.2383]
[1758376413110,10.27153968,4476.7,4476.6,0.001]
[1758376414474,10.27153968,4476.7,4476.6,0.2383]
[1758376414807,17.31153968,4476.7,4476.6,0.2383]
[1758376416008,17.31153968,4476.7,4476.6,0.001]
[1758376421432,2.23383818,4476.6,4476.1,1e-08]
[1758376421730,10.21103098,4476.2,4476.1,1e-08]
[1758376421929,14.25389813,4476.2,4476.1,0.23730001]
[1758376422105,14.25389813,4476.2,4476.1,1e-08]
[1758376425868,5.23408771,4476.1,4476.0,0.001]
[1758376426173,5.89235803,4476.1,4476.0,0.238]
[1758376426530,5.89363565,4476.1,4476.0,0.238]
[1758376426730,13.17163565,4476.1,4476.0,0.238]
[1758376430847,13.17163565,4476.1,4476.0,0.001]
[1758376431177,13.51953101,4476.1,4476.0,0.238]
[1758376432193,17.22753101,4476.1,4476.0,0.238]
[1758376434375,17.22743379,4476.1,4476.0,0.238]
[1758376434575,13.51943379,4476.1,4476.0,0.238]
[1758376434869,17.22643379,4476.1,4476.0,0.238]
[1758376436907,21.85553162,4476.1,4476.0,0.238]
[1758376441134,21.72990199,4476.1,4476.0,0.238]
[1758376441435,21.85555274,4476.1,4476.0,0.238]
[1758376442034,18.14855274,4476.1,4476.0,0.238]
[1758376442242,21.85555274,4476.1,4476.0,0.238]
[1758376444709,13.17155955,4476.1,4476.0,0.2397]
[1758376445034,12.84715638,4476.1,4476.0,0.2397]
[1758376453075,12.84714168,4476.1,4476.0,0.2397]
[1758376455786,12.84914168,4476.1,4476.0,0.2397]
[1758376456154,12.84914168,4476.1,4476.0,0.001]
[1758376458297,12.84906111,4476.1,4476.0,0.001]
[1758376458797,12.84906111,4476.1,4476.0,0.2445]
[1758376460995,12.72349093,4476.1,4476.0,0.2445]
[1758376461193,12.72349093,4476.1,4476.0,0.001]
[1758376461194,12.84906128,4476.1,4476.0,0.001]
[1758376463400,12.84906128,4476.1,4476.0,0.2445]
[1758376465032,12.84898475,4476.1,4476.0,0.2445]
[1758376475631,12.84914367,4476.1,4476.0,0.2445]
[1758376484891,12.72339836,4476.1,4476.0,0.2445]
[1758376485095,12.84919706,4476.1,4476.0,0.2445]
[1758376492422,12.84954312,4476.1,4476.0,0.2445]
[1758376492828,12.72374442,4476.1,4476.0,0.2445]
[1758376493029,12.84953844,4476.1,4476.0,0.2445]
[1758376496036,12.84953844,4476.1,4476.0,0.001]
[1758376496798,12.84953724,4476.1,4476.0,0.001]
[1758376498246,12.84953724,4476.1,4476.0,0.2358]
[1758376501252,12.84953724,4476.1,4476.0,0.001]
[1758376501552,13.09633724,4476.1,4476.0,0.001]
[1758376503346,12.84953724,4476.1,4476.0,0.001]
[1758376503676,12.84958053,4476.1,4476.0,0.001]
[1758376515372,12.72377072,4476.1,4476.0,0.001]
[1758376515576,12.84957022,4476.1,4476.0,0.001]
[1758376516385,5.80957022,4476.1,4476.0,0.001]
[1758376517084,5.80957022,4476.1,4476.0,0.2498]
[1758376519411,5.80954138,4476.1,4476.0,0.2498]
[1758376526992,5.80954138,4476.1,4476.0,0.001]
[1758376530022,0.57545367,4476.1,4476.0,0.001]
[1758376530221,0.3657995,4476.1,4476.0,0.2498]
[1758376530538,0.3657995,4476.1,4476.0,0.87063859]
[1758376535234,0.24,4476.1,4476.0,0.87063859]
[1758376535806,0.002,4476.1,4476.0,3.89677621]
[1758376549651,0.002,4476.1,4476.0,7.59677621]
[1758376550744,0.002,4476.1,4476.0,5.36263859]
[1758376551056,0.002,4476.1,4476.0,5.11383859]
[1758376556732,0.002,4476.1,4476.0,7.34797621]
[1758376557254,0.002,4476.1,4476.0,7.58597621]
[1758376562638,0.002,4476.1,4476.0,4.493]
[1758376562978,0.002,4476.1,4476.0,3.7]
[1758376562979,0.36863049,4476.1,4476.0,3.7]
[1758376563130,0.49436098,4476.1,4476.0,3.7]
[1758376563326,0.70394941,4476.1,4476.0,3.7]
[1758376563632,2.93803712,4476.1,4476.0,3.7]
[1758376563834,2.93803712,4476.1,4476.0,0.001]
[1758376564137,2.93803712,4476.1,4476.0,3.7]
[1758376566157,5.93803712,4476.1,4476.0,3.7]
[1758376569700,5.93787049,4476.1,4476.0,3.7]
[1758376570252,5.93777336,4476.1,4476.0,3.7]
[1758376577666,5.93777336,4476.1,4476.0,0.001]
[1758376581504,5.93763001,4476.1,4476.0,0.001]
[1758376583422,5.69673001,4476.1,4476.0,0.001]
[1758376585527,5.69667617,4476.1,4476.0,0.001]
[1758376589316,5.69676276,4476.1,4476.0,0.001]
[1758376593338,5.69689461,4476.1,4476.0,0.001]
[1758376593869,5.69689461,4476.1,4476.0,0.2264]
[1758376597234,5.69716616,4476.1,4476.0,0.2264]
[1758376598264,3.46307845,4476.1,4476.0,0.2264]
[1758376599150,5.69716616,4476.1,4476.0,0.2264]
[1758376601060,3.46307845,4476.1,4476.0,0.2264]
[1758376602666,5.69716616,4476.1,4476.0,0.2264]
[1758376603363,5.69716616,4476.1,4476.0,0.001]
[1758376603542,5.92286616,4476.1,4476.0,0.001]
[1758376604063,5.69716616,4476.1,4476.0,0.001]
[1758376620529,3.46307845,4476.1,4476.0,0.001]
[1758376620893,3.46307845,4476.1,4476.0,0.2352]
[1758376621093,5.69716616,4476.1,4476.0,0.2352]
[1758376621330,3.46307845,4476.1,4476.0,0.2352]
[1758376621528,5.69716616,4476.1,4476.0,0.2352]
[1758376622194,3.46307845,4476.1,4476.0,0.2352]
[1758376622595,5.69716616,4476.1,4476.0,0.2352]
[1758376623342,5.69716616,4476.1,4476.0,0.001]
[1758376649040,3.46307845,4476.1,4476.0,0.001]
[1758376649246,3.46307845,4476.1,4476.0,0.2379]
[1758376649446,3.25348597,4476.1,4476.0,0.2379]
[1758376654013,3.25348597,4476.1,4476.0,0.26024137]
[1758376657322,0.25348597,4476.1,4476.0,0.26024137]
[1758376658723,0.25348597,4476.1,4476.0,1.64954775]
[1758376663432,0.12773049,4476.1,4476.0,1.64954775]
[1758376666044,0.12773049,4476.1,4476.0,1.41264775]
[1758376666214,0.12773049,4476.1,4476.0,0.793]
[1758376667437,0.12773049,4476.1,4476.0,1.0293]
[1758376671356,0.25348597,4476.1,4476.0,1.0293]
[1758376672381,0.25348597,4476.1,4476.0,0.793]
[1758376676253,0.25348597,4476.1,4476.0,1.0293]
[1758376680670,0.25348597,4476.1,4476.0,0.793]
[1758376681360,0.25350897,4476.1,4476.0,0.793]
[1758376689288,0.12773049,4476.1,4476.0,0.793]
[1758376689498,0.25353607,4476.1,4476.0,0.793]
[1758376692497,0.25353607,4476.1,4476.0,0.001]
[1758376692697,0.25353607,4476.1,4476.0,3.7]
[1758376695000,5.72972378,4476.1,4476.0,3.699]
[1758376695200,5.93939546,4476.1,4476.0,3.699]
[1758376703014,3.70530775,4476.1,4476.0,3.699]
[1758376703378,5.93939546,4476.1,4476.0,3.699]
[1758376704576,3.46320775,4476.1,4476.0,3.699]
[1758376705528,5.69729546,4476.1,4476.0,3.699]
[1758376705832,3.46320775,4476.1,4476.0,3.699]
[1758376707267,5.69729546,4476.1,4476.0,3.699]
[1758376709760,3.46320775,4476.1,4476.0,3.699]
[1758376713165,3.46306086,4476.1,4476.0,3.699]
[1758376724252,0.46306086,4476.1,4476.0,3.699]
[1758376724457,0.25353607,4476.1,4476.0,3.9424]
[1758376724655,0.25353607,4476.1,4476.0,4.56249716]
[1758376725353,0.25353607,4476.1,4476.0,3.9424]
[1758376736484,0.25353607,4476.1,4476.0,3.699]
[1758376738685,0.46313853,4476.1,4476.0,3.699]
[1758376739670,2.69722624,4476.1,4476.0,3.699]
[1758376740703,2.93482624,4476.1,4476.0,3.699]
[1758376742307,2.93482624,4476.1,4476.0,0.001]
[1758376742481,2.93482624,4476.1,4476.0,3.699]
[1758376743981,9.97482624,4476.1,4476.0,3.699]
[1758376745082,9.73722624,4476.1,4476.0,3.699]
[1758376745973,9.98362624,4476.1,4476.0,3.699]
[1758376747118,9.98359833,4476.1,4476.0,3.699]
[1758376748635,9.98359779,4476.1,4476.0,3.699]
[1758376752605,9.73719779,4476.1,4476.0,3.699]
[1758376757741,9.96819779,4476.1,4476.0,3.699]
[1758376763765,9.73719779,4476.1,4476.0,3.699]
[1758376765577,9.96819779,4476.1,4476.0,3.699]
[1758376765779,9.73719779,4476.1,4476.0,3.699]
[1758376767472,12.73719779,4476.1,4476.0,3.699]
[1758376771412,12.96819779,4476.1,4476.0,3.699]
[1758376772474,12.73719779,4476.1,4476.0,3.699]
[1758376772671,12.96819779,4476.1,4476.0,0.001]
[1758376782522,12.96811136,4476.1,4476.0,0.001]
[1758376784024,12.96881136,4476.1,4476.0,0.001]
[1758376786418,12.84304381,4476.1,4476.0,0.001]
[1758376786625,12.96875438,4476.1,4476.0,0.001]
[1758376789531,12.73705438,4476.1,4476.0,0.001]
[1758376791541,12.73705438,4476.1,4476.0,0.247]
[1758376792040,12.73705438,4476.1,4476.0,0.001]
[1758376801182,12.73722306,4476.1,4476.0,0.001]
[1758376803183,12.97502306,4476.1,4476.0,0.001]
[1758376803760,12.73722306,4476.1,4476.0,0.001]
[1758376812001,13.08497002,4476.1,4476.0,0.001]
[1758376812206,13.32277002,4476.1,4476.0,0.001]
[1758376813605,13.08497002,4476.1,4476.0,0.001]
[1758376813820,13.32277002,4476.1,4476.0,0.001]
[1758376818988,13.65030884,4476.1,4476.0,0.001]
[1758376822515,13.32277002,4476.1,4476.0,0.001]
[1758376828536,13.31490398,4476.1,4476.0,0.001]
[1758376828734,7.21077642,4475.8,4475.7,1e-08]
[1758376828927,21.63131466,4475.8,4475.7,1e-08]
[1758376829443,21.72089441,4475.8,4475.7,1e-08]
[1758376831360,21.95739441,4475.8,4475.7,1e-08]
[1758376835359,21.955607,4475.8,4475.7,1e-08]
[1758376835757,22.86050254,4475.8,4475.7,1e-08]
[1758376837869,18.92600254,4475.8,4475.7,0.24610001]
[1758376838032,22.62400254,4475.8,4475.7,0.24610001]
[1758376841574,22.62427288,4475.8,4475.7,0.24610001]
[1758376842642,22.62427288,4475.8,4475.7,1e-08]
[1758376844073,22.62627288,4475.8,4475.7,1e-08]
[1758376848780,18.92827288,4475.8,4475.7,0.22770001]
[1758376848993,22.62627288,4475.8,4475.7,0.22770001]
[1758376850174,22.62627288,4475.8,4475.7,1e-08]
[1758376851278,18.92827288,4475.8,4475.7,1e-08]
[1758376851574,22.62627288,4475.8,4475.7,0.22770001]